bitfinex-derivatives/quotes_BTCF0:USTF0_20250926
["timestamp","ask_amount","ask_price","bid_price","bid_amount"]
[1758870268083,0.01283,109470.0,109460.0,0.0912921]
[1758870268283,0.01283,109470.0,109460.0,1.6753721]
[1758870268886,0.01283,109470.0,109460.0,1.76674219]
[1758870269086,0.1041139,109470.0,109460.0,1.67545009]
[1758870269575,0.1398239,109470.0,109460.0,1.67453009]
[1758870270586,0.1428239,109470.0,109460.0,1.67453009]
[1758870273985,0.1428239,109470.0,109460.0,1.74744082]
[1758870274885,0.1428239,109470.0,109460.0,1.74604082]
[1758870275280,0.1428239,109470.0,109460.0,0.88588082]
[1758870275491,0.1428239,109470.0,109460.0,1.74604082]
[1758870275675,0.0912921,109460.0,109450.0,0.3608]
[1758870275985,0.39564317,109460.0,109450.0,0.3608]
[1758870276383,0.1271021,109460.0,109450.0,0.4521004]
[1758870277084,0.1331021,109460.0,109450.0,0.4521004]
[1758870277686,0.1351021,109460.0,109450.0,0.4521004]
[1758870279387,0.04381,109460.0,109450.0,0.4521004]
[1758870280187,0.0211,109460.0,109450.0,0.4521004]
[1758870280384,0.0211,109460.0,109450.0,0.94346214]
[1758870280686,0.0211,109460.0,109450.0,0.54346214]
[1758870281588,0.008,109460.0,109450.0,0.54346214]
[1758870288996,0.008,109460.0,109450.0,1.21200321]
[1758870289292,0.008,109460.0,109450.0,0.94346214]
[1758870290091,0.008,109460.0,109450.0,1.80066214]
[1758870294604,0.008,109460.0,109450.0,2.13855809]
[1758870296602,0.008,109460.0,109450.0,2.01691818]
[1758870296897,0.22425604,109460.0,109450.0,2.01691818]
[1758870297400,0.23801604,109460.0,109450.0,1.61691818]
[1758870298409,0.22425604,109460.0,109450.0,1.61691818]
[1758870301111,0.008,109460.0,109450.0,1.61691818]
[1758870301995,0.008,109460.0,109450.0,1.73180564]
[1758870302157,0.45427208,109460.0,109450.0,1.4242492]
[1758870302413,0.94556468,109460.0,109450.0,1.30006423]
[1758870302620,0.23801604,109460.0,109450.0,1.60762127]
[1758870302806,0.23801604,109460.0,109450.0,1.69898301]
[1758870304212,0.02176,109460.0,109450.0,1.69898301]
[1758870304901,0.008,109460.0,109450.0,1.69898301]
[1758870305712,0.008,109460.0,109450.0,1.61691878]
[1758870306511,0.01283,109480.0,109450.0,2.22395264]
[1758870306709,0.03438,109480.0,109470.0,1.01993486]
[1758870306912,0.03438,109480.0,109470.0,1.96457886]
[1758870307114,0.03438,109480.0,109470.0,2.1808349]
[1758870307418,0.03438,109480.0,109470.0,2.27217995]
[1758870308127,0.03638,109480.0,109470.0,2.3455124]
[1758870308313,0.03638,109480.0,109470.0,2.26346523]
[1758870308514,0.03638,109480.0,109470.0,2.19010113]
[1758870308716,0.03438,109480.0,109470.0,2.19010113]
[1758870310505,0.5256557,109480.0,109470.0,1.96461339]
[1758870310931,0.5256557,109480.0,109470.0,2.05589769]
[1758870311112,0.01283,109480.0,109470.0,2.27215373]
[1758870311310,0.03465,109490.0,109480.0,0.0912759]
[1758870311514,0.03465,109490.0,109480.0,0.87535007]
[1758870311813,0.03465,109490.0,109480.0,0.96662597]
[1758870312014,0.03465,109490.0,109480.0,1.05797102]
[1758870312520,0.03565,109490.0,109480.0,1.05797102]
[1758870313621,0.1279176,109490.0,109480.0,0.53418304]
[1758870313822,0.1256659,109480.0,109470.0,0.3608]
[1758870314015,0.55817798,109480.0,109470.0,0.3608]
[1758870315116,0.55817798,109480.0,109470.0,0.3658]
[1758870318920,0.46690208,109480.0,109470.0,0.3658]
[1758870319127,0.46690208,109480.0,109470.0,0.4570842]
[1758870319328,0.55817798,109480.0,109470.0,0.53912219]
[1758870319624,0.34192194,109480.0,109470.0,0.53912219]
[1758870320825,0.34192194,109480.0,109470.0,0.44783799]
[1758870321025,0.34192194,109480.0,109470.0,0.66409403]
[1758870321222,0.34192194,109480.0,109470.0,0.44783799]
[1758870321428,0.34192194,109480.0,109470.0,0.66409403]
[1758870321622,0.34192194,109480.0,109470.0,0.44783799]
[1758870321824,0.55817798,109480.0,109470.0,0.44783799]
[1758870322629,0.95817798,109480.0,109470.0,0.44783799]
[1758870323633,0.95817798,109480.0,109470.0,0.3658]
[1758870324333,0.95917798,109480.0,109470.0,0.3608]
[1758870324630,0.96017798,109480.0,109470.0,0.3608]
[1758870332435,1.81337798,109480.0,109470.0,0.3608]
[1758870334037,1.81337798,109480.0,109470.0,0.36076]
[1758870338426,0.0912842,109470.0,109460.0,0.44283799]
[1758870338631,0.55980628,109470.0,109460.0,0.44283799]
[1758870339125,0.95980628,109470.0,109460.0,0.44283799]
[1758870339530,0.55980628,109470.0,109460.0,0.44283799]
[1758870340539,0.34355024,109470.0,109460.0,0.44283799]
[1758870341236,0.41621334,109470.0,109460.0,0.44283799]
[1758870341944,0.41621334,109470.0,109460.0,0.44783799]
[1758870342543,0.63246938,109470.0,109460.0,0.44783799]
[1758870342845,0.1999573,109470.0,109460.0,0.44783799]
[1758870343046,0.63246938,109470.0,109460.0,0.44783799]
[1758870343538,0.55980628,109470.0,109460.0,0.44783799]
[1758870343742,0.34355024,109470.0,109460.0,0.44783799]
[1758870344339,0.95980628,109470.0,109460.0,0.08703799]
[1758870344538,0.95980628,109470.0,109450.0,0.11488746]
[1758870344539,0.0912926,109460.0,109450.0,0.11488746]
[1758870344847,0.0912926,109460.0,109440.0,0.3608]
[1758870344848,0.1273193,109440.0,109430.0,0.41681906]
[1758870345036,1.48724179,109440.0,109430.0,0.3608]
[1758870346046,1.48724179,109440.0,109430.0,0.36992237]
[1758870346349,1.41287138,109440.0,109430.0,0.36992237]
[1758870346642,1.41387138,109440.0,109430.0,0.36992237]
[1758870347544,1.41387138,109440.0,109430.0,0.3608]
[1758870347843,0.1273272,109430.0,109420.0,0.3608]
[1758870348048,0.01361,109410.0,109400.0,1.16067394]
[1758870348246,0.01361,109410.0,109400.0,1.88227394]
[1758870348750,0.01361,109410.0,109400.0,1.98261741]
[1758870349150,0.01361,109410.0,109400.0,1.99161741]
[1758870349352,0.01361,109410.0,109400.0,1.99157741]
[1758870349650,0.01361,109410.0,109400.0,2.21083345]
[1758870349951,0.01361,109410.0,109400.0,2.28537705]
[1758870350944,0.01361,109410.0,109400.0,1.76156707]
[1758870351144,0.01361,109410.0,109400.0,2.19407915]
[1758870351347,0.1273358,109420.0,109410.0,0.02236]
[1758870351547,0.34359184,109420.0,109410.0,0.59941604]
[1758870351948,0.34359184,109420.0,109410.0,0.69081954]
[1758870352344,0.25226604,109420.0,109410.0,0.69081954]
[1758870352653,0.32118304,109430.0,109410.0,0.79289314]
[1758870352855,0.34358304,109430.0,109420.0,0.59941604]
[1758870354346,0.34358304,109430.0,109420.0,0.90699758]
[1758870354347,0.03601,109430.0,109420.0,0.90699758]
[1758870354651,0.0224,109430.0,109420.0,0.90699758]
[1758870355358,0.0224,109430.0,109420.0,0.90799758]
[1758870355754,0.32117844,109440.0,109420.0,2.16115758]
[1758870355949,0.34416844,109440.0,109430.0,0.59890604]
[1758870356646,0.1279124,109440.0,109430.0,0.38265]
[1758870356956,0.1279124,109440.0,109430.0,0.68090214]
[1758870357756,0.1279124,109440.0,109430.0,0.67116214]
[1758870358661,0.1289124,109440.0,109430.0,0.67116214]
[1758870358958,0.1153024,109440.0,109430.0,0.67116214]
[1758870359360,0.1203024,109440.0,109430.0,0.67116214]
[1758870359658,0.1337924,109440.0,109430.0,0.67116214]
[1758870359863,0.001,109440.0,109430.0,1.25385738]
[1758870360055,0.001,109440.0,109430.0,1.25485738]
[1758870360666,0.0923084,109440.0,109430.0,1.16354058]
[1758870360852,0.1057984,109440.0,109430.0,1.16354058]
[1758870361056,0.1287884,109440.0,109430.0,1.16354058]
[1758870361258,0.02299,109440.0,109430.0,1.16354058]
[1758870361466,0.02299,109440.0,109430.0,1.25485738]
[1758870362351,0.1277887,109440.0,109430.0,0.87502844]
[1758870362658,0.02299,109440.0,109430.0,1.16354058]
[1758870362865,0.02299,109440.0,109430.0,1.25485758]
[1758870363865,0.01361,109450.0,109430.0,1.25473758]
[1758870364067,0.0366,109450.0,109440.0,0.67116214]
[1758870364251,0.0366,109450.0,109440.0,0.38265]
[1758870364455,0.1278999,109450.0,109440.0,0.38265]
[1758870364651,0.0366,109450.0,109440.0,0.4739583]
[1758870364857,0.1049031,109460.0,109450.0,0.0912999]
[1758870365056,0.03661,109460.0,109450.0,0.76368204]
[1758870365267,0.023,109460.0,109450.0,0.77342204]
[1758870365464,0.023,109460.0,109450.0,0.86478378]
[1758870365772,0.03649,109470.0,109460.0,0.1143618]
[1758870366069,0.1277741,109470.0,109460.0,0.67238214]
[1758870366254,0.1277741,109470.0,109460.0,0.38387]
[1758870366457,0.1277741,109470.0,109460.0,0.39286324]
[1758870367969,0.1277741,109470.0,109460.0,0.39986324]
[1758870368468,0.023,109470.0,109460.0,0.88076058]
[1758870368668,0.1047699,109480.0,109460.0,0.88076058]
[1758870368868,0.1277699,109480.0,109470.0,0.38387]
[1758870372469,0.41628204,109480.0,109470.0,0.38387]
[1758870373767,0.1277699,109480.0,109470.0,0.38387]
[1758870373973,0.41628204,109480.0,109470.0,0.38387]
[1758870382485,0.41628204,109480.0,109470.0,0.4751535]
[1758870383788,0.1042606,109490.0,109470.0,1.25501069]
[1758870383985,0.104253,109500.0,109480.0,0.77339724]
[1758870384186,0.127253,109500.0,109490.0,0.38387]
[1758870384385,0.41576514,109500.0,109490.0,0.38387]
[1758870385782,0.49535741,109500.0,109490.0,0.38387]
[1758870386389,0.49535741,109500.0,109490.0,0.4751368]
[1758870386390,0.04199,109500.0,109490.0,0.4751368]
[1758870386584,0.04199,109500.0,109490.0,0.77338894]
[1758870386585,0.029,109500.0,109490.0,0.77338894]
[1758870386890,0.029,109500.0,109490.0,0.4848768]
[1758870387091,0.006,109500.0,109490.0,0.77338894]
[1758870387292,0.006,109500.0,109490.0,1.26471731]
[1758870387479,0.015,109500.0,109490.0,1.26471731]
[1758870389789,0.015,109500.0,109490.0,1.33904645]
[1758870393395,0.41378974,109530.0,109520.0,0.02189]
[1758870393596,0.41378974,109530.0,109520.0,0.38269]
[1758870394693,0.42878974,109530.0,109520.0,0.38269]
[1758870395196,0.42878974,109530.0,109520.0,1.71021739]
[1758870395197,0.015,109530.0,109520.0,1.71021739]
[1758870395587,0.015,109530.0,109520.0,2.39872953]
[1758870396791,0.01295,109550.0,109530.0,0.0912269]
[1758870397000,0.01295,109550.0,109540.0,1.97514734]
[1758870397202,0.01295,109560.0,109540.0,1.98488734]
[1758870397402,0.034,109560.0,109550.0,0.76241904]
[1758870398093,0.034,109560.0,109550.0,0.85370989]
[1758870398899,0.32251214,109560.0,109550.0,0.47398085]
[1758870399202,0.41372074,109560.0,109550.0,0.38269]
[1758870399797,0.44672074,109560.0,109550.0,0.38269]
[1758870400608,0.44272074,109560.0,109550.0,0.38269]
[1758870400915,0.41672074,109560.0,109550.0,0.38269]
[1758870401096,0.43272074,109560.0,109550.0,0.38269]
[1758870401996,0.43272074,109560.0,109550.0,0.3608]
[1758870401997,0.83272074,109560.0,109550.0,0.3608]
[1758870402798,0.83272074,109560.0,109540.0,0.38269]
[1758870402799,0.1252169,109550.0,109540.0,0.38269]
[1758870402994,0.41372904,109550.0,109540.0,0.3608]
[1758870403694,0.41372904,109550.0,109540.0,0.38269]
[1758870404203,0.42472904,109550.0,109540.0,0.38269]
[1758870405103,0.1362169,109550.0,109540.0,0.38269]
[1758870405402,0.33351214,109550.0,109540.0,0.38269]
[1758870405706,0.33351214,109550.0,109540.0,0.4739152]
[1758870405999,0.42472904,109550.0,109540.0,0.38269]
[1758870407205,0.02395,109550.0,109540.0,0.38269]
[1758870407411,0.011,109550.0,109540.0,2.11477392]
[1758870410094,0.011,109550.0,109540.0,0.48371668]
[1758870410291,0.1362168,109550.0,109540.0,1.32517668]
[1758870412599,0.045,109550.0,109540.0,1.41640178]
[1758870413697,0.011,109550.0,109540.0,1.42614178]
[1758870414311,0.011,109550.0,109540.0,1.82614178]
[1758870414801,0.011,109550.0,109540.0,2.09428115]
[1758870418103,0.0461,109550.0,109540.0,0.45208668]
[1758870418318,0.80545607,109550.0,109540.0,0.45208668]
[1758870418502,0.80545607,109550.0,109540.0,0.09128668]
[1758870418805,0.0351,109540.0,109530.0,0.39174775]
[1758870419004,0.0351,109540.0,109530.0,0.7435]
[1758870419204,0.46394151,109540.0,109530.0,0.83478668]
[1758870419805,0.37271641,109540.0,109530.0,0.83478668]
[1758870420126,0.0351,109540.0,109530.0,0.84394721]
[1758870420414,0.39471641,109540.0,109530.0,0.93518061]
[1758870420709,0.0571,109540.0,109530.0,0.93518061]
[1758870424302,0.5483251,109540.0,109530.0,0.81288668]
[1758870424521,0.1263342,109530.0,109520.0,0.3608]
[1758870424713,0.46395061,109530.0,109520.0,0.3608]
[1758870425012,0.0351,109520.0,109510.0,0.3608]
[1758870425317,0.37271641,109520.0,109510.0,0.3827]
[1758870426012,0.0351,109520.0,109510.0,0.4739501]
[1758870426317,0.37071641,109520.0,109510.0,0.4739501]
[1758870427214,0.37071641,109520.0,109510.0,0.4769501]
[1758870427511,0.38071641,109520.0,109510.0,0.3857]
[1758870428108,0.38671641,109520.0,109510.0,0.3857]
[1758870428415,0.0491,109520.0,109510.0,0.48630092]
[1758870428814,0.0491,109520.0,109510.0,0.48430092]
[1758870430016,0.38671641,109520.0,109510.0,0.39305092]
[1758870432616,0.38671641,109520.0,109510.0,0.48430092]
[1758870433319,0.0491,109520.0,109510.0,0.48430092]
[1758870433610,0.0491,109520.0,109510.0,0.57561261]
[1758870435120,0.02798,109520.0,109510.0,0.57561261]
[1758870437221,0.05067,109520.0,109510.0,0.57561261]
[1758870437616,0.016,109520.0,109510.0,1.31322902]
[1758870438516,0.016,109520.0,109510.0,0.97561261]
[1758870441518,0.016,109520.0,109510.0,1.31322902]
[1758870442325,0.016,109520.0,109510.0,0.97561261]
[1758870442612,0.016,109520.0,109510.0,1.05739508]
[1758870444124,0.02992,109520.0,109510.0,1.05739508]
[1758870444327,0.48130771,109520.0,109510.0,0.56614508]
[1758870444518,0.05245,109520.0,109510.0,1.37052261]
[1758870444823,0.39006641,109520.0,109510.0,1.37052261]
[1758870445016,0.39006641,109520.0,109510.0,0.48436261]
[1758870445218,0.39006641,109520.0,109510.0,1.37220261]
[1758870445816,0.39006641,109520.0,109510.0,1.36285169]
[1758870445817,0.48130771,109520.0,109510.0,1.36285169]
[1758870449222,0.88130771,109520.0,109510.0,0.3837]
[1758870450221,0.88130771,109520.0,109510.0,0.3618]
[1758870452025,0.88130771,109520.0,109510.0,0.001]
[1758870454326,0.88130771,109520.0,109510.0,0.02341]
[1758870454522,0.48130771,109520.0,109510.0,0.02341]
[1758870454719,0.48130771,109520.0,109510.0,0.38421]
[1758870461931,0.1436913,109520.0,109510.0,0.38421]
[1758870462327,0.1436913,109520.0,109510.0,0.46599247]
[1758870463926,0.1436913,109520.0,109510.0,0.38421]
[1758870468634,0.35976054,109520.0,109510.0,0.60027924]
[1758870471022,0.35976054,109520.0,109510.0,0.38421]
[1758870471226,0.35976054,109520.0,109510.0,0.60027924]
[1758870471422,0.35976054,109520.0,109510.0,0.38421]
[1758870471635,0.35976054,109520.0,109510.0,0.60027924]
[1758870472031,0.57582978,109520.0,109510.0,0.60027924]
[1758870473235,0.1436913,109520.0,109510.0,0.60027924]
[1758870473436,0.57582978,109520.0,109510.0,0.68206171]
[1758870475238,0.57582978,109520.0,109510.0,0.46599247]
[1758870475442,0.35976054,109520.0,109510.0,0.46599247]
[1758870475635,0.57582978,109520.0,109510.0,0.46599247]
[1758870477935,0.1436913,109520.0,109510.0,0.46599247]
[1758870478133,0.57582978,109520.0,109510.0,0.46599247]
[1758870478443,0.1436913,109520.0,109510.0,0.46599247]
[1758870478746,0.57582978,109520.0,109510.0,0.46599247]
[1758870479430,0.57582978,109520.0,109510.0,0.68206171]
[1758870480543,0.43179524,109520.0,109510.0,0.46599247]
[1758870485441,0.1436913,109520.0,109510.0,0.46599247]
[1758870485637,0.03853,109520.0,109510.0,0.9366582]
[1758870485844,0.016,109520.0,109510.0,0.9366582]
[1758870486038,0.03781,109520.0,109510.0,0.9366582]
[1758870486450,0.05075,109520.0,109510.0,0.9366582]
[1758870486749,0.016,109520.0,109510.0,1.73271573]
[1758870486958,0.016,109520.0,109510.0,2.21477214]
[1758870487144,0.016,109520.0,109510.0,2.13271573]
[1758870487345,0.41511944,109540.0,109530.0,0.02295]
[1758870487953,0.41511944,109540.0,109530.0,0.11426169]
[1758870488447,0.41511944,109540.0,109530.0,0.2052607]
[1758870488651,0.41611944,109540.0,109530.0,0.2052607]
[1758870488847,0.44411944,109540.0,109530.0,0.2052607]
[1758870489259,0.84411944,109540.0,109530.0,0.08199837]
[1758870491154,0.84411944,109540.0,109520.0,0.10494837]
[1758870491155,0.03475,109530.0,109520.0,0.10494837]
[1758870491353,0.32285394,109530.0,109520.0,0.10494837]
[1758870491748,0.32285394,109530.0,109520.0,0.11387637]
[1758870492443,0.33185394,109530.0,109520.0,0.11387637]
[1758870493864,0.33185394,109530.0,109520.0,0.20511807]
[1758870495164,0.04375,109530.0,109520.0,0.20511807]
[1758870495665,0.33185394,109530.0,109520.0,0.20511807]
[1758870496064,0.04375,109530.0,109520.0,0.20511807]
[1758870496265,0.33185394,109530.0,109520.0,0.20511807]
[1758870498864,0.04375,109530.0,109520.0,0.29642142]
[1758870500677,0.04375,109530.0,109520.0,0.37032134]
[1758870503171,0.04375,109530.0,109520.0,0.28832297]
[1758870503759,0.03475,109530.0,109520.0,0.37329948]
[1758870504274,0.03475,109530.0,109520.0,0.37629948]
[1758870504573,0.32466394,109540.0,109530.0,0.1144734]
[1758870504763,0.03656,109540.0,109530.0,0.1144734]
[1758870505276,0.03656,109540.0,109530.0,0.20577675]
[1758870505572,0.32466394,109540.0,109530.0,0.20577675]
[1758870505873,1.32425111,109550.0,109540.0,0.1144645]
[1758870505874,0.68546394,109550.0,109540.0,0.1144645]
[1758870506170,0.68546394,109550.0,109540.0,0.19641872]
[1758870507171,0.69446394,109550.0,109540.0,0.19641872]
[1758870511880,0.40636,109550.0,109540.0,0.19641872]
[1758870512079,0.3698,109550.0,109540.0,0.90032512]
[1758870512274,0.26855846,109550.0,109540.0,1.09710167]
[1758870512575,0.26855846,109550.0,109540.0,1.01514745]
[1758870512776,0.26855846,109550.0,109540.0,0.90032512]
[1758870513373,0.19855846,109550.0,109540.0,1.01494012]
[1758870513570,0.17654846,109550.0,109540.0,1.00847012]
[1758870514481,0.19912846,109550.0,109540.0,0.32136618]
[1758870514686,0.19912846,109550.0,109540.0,1.19772618]
[1758870514879,0.19912846,109550.0,109540.0,1.37121512]
[1758870515283,0.19012846,109550.0,109540.0,1.37121512]
[1758870515482,0.19312846,109550.0,109540.0,1.37121512]
[1758870517880,0.19312846,109550.0,109540.0,1.45298437]
[1758870518185,0.19312846,109550.0,109540.0,1.37121512]
[1758870518379,0.19312846,109550.0,109540.0,1.45296893]
[1758870518883,0.19312846,109550.0,109540.0,1.37121512]
[1758870519378,0.19312846,109550.0,109540.0,1.45295613]
[1758870521385,0.19312846,109550.0,109540.0,1.85295613]
[1758870521788,0.19312846,109550.0,109540.0,1.45295613]
[1758870522389,0.19312846,109550.0,109540.0,1.16485219]
[1758870522688,0.19312846,109550.0,109540.0,1.45295613]
[1758870523388,0.19312846,109550.0,109540.0,1.16485219]
[1758870523578,0.19312846,109550.0,109540.0,1.45295613]
[1758870523783,0.19312846,109550.0,109540.0,1.45167613]
[1758870524290,0.19312846,109550.0,109540.0,0.57659613]
[1758870524487,0.19312846,109550.0,109540.0,1.45167613]
[1758870529294,0.19312846,109550.0,109540.0,1.36993512]
[1758870529697,0.9724488,109550.0,109540.0,0.001]
[1758870530687,1.8474888,109550.0,109540.0,0.001]
[1758870530883,1.91904797,109550.0,109540.0,0.001]
[1758870531089,1.91904797,109550.0,109520.0,0.0906842]
[1758870531090,0.03557,109530.0,109520.0,0.008928]
[1758870531296,0.01299,109520.0,109510.0,1.315082]
[1758870531595,0.30109394,109520.0,109510.0,1.32418938]
[1758870531789,0.30109394,109520.0,109510.0,1.41547606]
[1758870532596,0.30109394,109520.0,109510.0,1.43047606]
[1758870533690,0.29709394,109520.0,109510.0,1.42447606]
[1758870534002,0.29709394,109520.0,109510.0,1.33323026]
[1758870534398,0.38833494,109520.0,109510.0,1.33323026]
[1758870534596,0.81091494,109520.0,109510.0,0.46466358]
[1758870534900,1.09901888,109520.0,109510.0,0.3738]
[1758870536195,1.09901888,109520.0,109510.0,0.26841405]
[1758870536501,1.10801888,109520.0,109510.0,0.22441405]
[1758870536996,1.10801888,109520.0,109510.0,0.22041405]
[1758870537202,1.10901888,109520.0,109510.0,0.22041405]
[1758870537499,1.98533888,109520.0,109510.0,0.22041405]
[1758870537999,1.98433888,109520.0,109510.0,0.22041405]
[1758870538201,1.98933888,109520.0,109510.0,0.22041405]
[1758870538601,1.98033888,109520.0,109510.0,0.22041405]
[1758870538899,1.99333888,109520.0,109510.0,0.22041405]
[1758870539099,0.04957,109520.0,109510.0,0.24178405]
[1758870539298,0.1408114,109520.0,109510.0,0.24178405]
[1758870539601,0.42891534,109520.0,109510.0,0.24178405]
[1758870539901,0.42891534,109520.0,109510.0,0.22041405]
[1758870540294,0.42891534,109520.0,109510.0,0.24178405]
[1758870540599,0.57301292,109520.0,109510.0,0.24178405]
[1758870541099,0.48177152,109520.0,109510.0,0.33303295]
[1758870541804,0.26567076,109520.0,109510.0,0.33303295]
[1758870542193,0.26567076,109520.0,109510.0,0.34648295]
[1758870542389,0.35691196,109520.0,109510.0,0.24178405]
[1758870542904,0.26567076,109520.0,109510.0,0.25523405]
[1758870543205,0.25668076,109520.0,109510.0,0.34648355]
[1758870543499,0.018,109520.0,109510.0,1.053896]
[1758870543996,0.018,109520.0,109510.0,1.933656]
[1758870546500,0.018,109520.0,109510.0,2.00720506]
[1758870549022,0.018,109520.0,109510.0,2.22330582]
[1758870549198,0.47486742,109550.0,109520.0,0.01361]
[1758870549403,0.1259248,109540.0,109530.0,0.0233]
[1758870549707,0.0347,109540.0,109530.0,0.0233]
[1758870550606,0.25080076,109540.0,109530.0,0.25301076]
[1758870551604,0.25080076,109540.0,109530.0,0.03691]
[1758870551803,0.34202556,109540.0,109530.0,0.03691]
[1758870552095,0.1259331,109530.0,109520.0,0.1050562]
[1758870552300,0.1259414,109520.0,109510.0,0.24371405]
[1758870552502,0.55814292,109520.0,109510.0,0.24371405]
[1758870552908,1.17424368,109520.0,109510.0,0.22041405]
[1758870555398,2.05736368,109520.0,109510.0,0.22041405]
[1758870555603,2.06036368,109520.0,109510.0,0.22041405]
[1758870555908,0.1129248,109480.0,109470.0,0.2332812]
[1758870556099,0.1129248,109480.0,109470.0,0.1186662]
[1758870556100,0.54512632,109480.0,109470.0,0.1186662]
[1758870556299,0.54512632,109480.0,109470.0,0.03691]
[1758870557007,0.55817632,109480.0,109470.0,0.03691]
[1758870557209,0.54512632,109480.0,109470.0,0.03691]
[1758870557411,0.54512632,109480.0,109470.0,0.05091]
[1758870558310,0.54512632,109480.0,109470.0,0.05391]
[1758870558507,0.45081968,109480.0,109470.0,0.05391]
[1758870559409,0.1129248,109480.0,109470.0,0.05391]
[1758870560309,0.1129248,109480.0,109470.0,0.06327462]
[1758870561111,0.45081968,109480.0,109470.0,0.06327462]
[1758870561310,0.86386968,109480.0,109470.0,0.00139111]
[1758870561511,1.74622968,109480.0,109470.0,0.00139111]
[1758870561704,1.74622968,109480.0,109470.0,1e-08]
[1758870561910,0.1259998,109450.0,109440.0,0.04589213]
[1758870562103,0.46389468,109450.0,109440.0,0.04589213]
[1758870562307,0.46389468,109450.0,109440.0,0.13723718]
[1758870562506,0.46289468,109450.0,109440.0,0.13723718]
[1758870562711,0.46289468,109450.0,109440.0,0.04589213]
[1758870563009,0.1260079,109440.0,109430.0,0.03812681]
[1758870563311,0.46290278,109440.0,109430.0,0.1294969]
[1758870564001,0.37259488,109440.0,109430.0,0.1294969]
[1758870564404,0.0347,109440.0,109430.0,0.1294969]
[1758870565012,0.02142,109450.0,109440.0,0.03591]
[1758870565307,0.1043416,109460.0,109440.0,0.13622859]
[1758870565612,0.02142,109460.0,109450.0,0.03591]
[1758870565911,0.1127114,109460.0,109450.0,0.03591]
[1758870566608,0.1127114,109460.0,109450.0,0.12727592]
[1758870566811,0.1407114,109460.0,109450.0,0.12727592]
[1758870567305,0.04942,109460.0,109450.0,0.12727592]
[1758870567912,0.028,109460.0,109450.0,0.9564704]
[1758870569499,0.027,109460.0,109450.0,0.9564704]
[1758870569910,0.46348578,109490.0,109480.0,0.02294]
[1758870572413,0.48548578,109490.0,109480.0,0.02294]
[1758870572613,0.48848578,109490.0,109480.0,0.02294]
[1758870579812,0.39721488,109490.0,109480.0,0.02294]
[1758870580618,0.39721488,109490.0,109480.0,0.03591]
[1758870581206,0.04642,109490.0,109480.0,0.1271847]
[1758870582408,0.04642,109490.0,109480.0,0.5271847]
[1758870583109,0.04042,109490.0,109480.0,0.5271847]
[1758870583314,0.03842,109490.0,109480.0,0.5271847]
[1758870586616,0.03842,109490.0,109480.0,0.61852141]
[1758870588622,0.03842,109490.0,109480.0,0.83468277]
[1758870588623,0.25458136,109490.0,109480.0,0.83468277]
[1758870593428,0.25458136,109490.0,109480.0,0.91643897]
[1758870593618,0.25458136,109490.0,109480.0,0.83468277]
[1758870594226,0.25458136,109490.0,109480.0,0.91643897]
[1758870595817,0.03842,109490.0,109480.0,0.91643897]
[1758870596020,0.25458136,109490.0,109480.0,0.91643897]
[1758870598129,0.25458136,109490.0,109480.0,0.70027761]
[1758870598627,0.25458136,109490.0,109480.0,0.91643897]
[1758870600731,0.03842,109490.0,109480.0,0.70027761]
[1758870602233,0.32665851,109490.0,109480.0,0.70027761]
[1758870604529,0.32665851,109490.0,109470.0,0.24633959]
[1758870604530,0.01294,109480.0,109470.0,0.24633959]
[1758870604730,0.32446851,109480.0,109470.0,0.2273127]
[1758870605034,0.32446851,109480.0,109470.0,0.21808726]
[1758870605337,0.32446851,109480.0,109470.0,0.10347226]
[1758870605635,0.32446851,109480.0,109470.0,0.19475566]
[1758870605828,0.33446851,109480.0,109470.0,0.19475566]
[1758870609738,0.33446851,109480.0,109470.0,0.1127034]
[1758870616553,0.03329,109480.0,109470.0,0.1259434]
[1758870616731,0.32152851,109480.0,109470.0,0.1259434]
[1758870617335,0.33447851,109480.0,109470.0,0.1259434]
[1758870618744,0.03329,109480.0,109470.0,0.48780896]
[1758870618944,0.03329,109480.0,109470.0,1.06120627]
[1758870619142,0.01,109480.0,109470.0,1.06120627]
[1758870619539,0.01,109480.0,109470.0,0.77296776]
[1758870619735,0.01,109480.0,109470.0,1.06120627]
[1758870620043,0.03162,109480.0,109470.0,0.77296776]
[1758870620542,0.31985851,109480.0,109470.0,0.37296776]
[1758870621140,0.03162,109480.0,109470.0,0.37296776]
[1758870621345,0.04457,109480.0,109470.0,0.37296776]
[1758870622542,0.03162,109480.0,109470.0,0.37296776]
[1758870624741,0.03162,109480.0,109470.0,0.2909155]
[1758870626649,0.01,109480.0,109470.0,0.97915401]
[1758870627951,0.01,109480.0,109470.0,1.09376901]
[1758870630653,0.28823851,109510.0,109470.0,1.09376901]
[1758870630948,0.02205,109520.0,109510.0,0.1266497]
[1758870631448,0.03563,109520.0,109510.0,0.1126797]
[1758870631845,0.03563,109520.0,109510.0,0.1266497]
[1758870632654,0.05163,109520.0,109510.0,0.13570384]
[1758870633355,0.03805,109520.0,109510.0,0.13570384]
[1758870633554,0.03905,109520.0,109510.0,0.42394235]
[1758870633740,0.03905,109520.0,109510.0,0.50595983]
[1758870634351,0.03905,109520.0,109510.0,0.59727152]
[1758870634551,0.017,109520.0,109510.0,0.59727152]
[1758870634746,0.017,109520.0,109510.0,0.91525404]
[1758870634946,0.017,109520.0,109510.0,0.99727152]
[1758870636153,0.017,109520.0,109510.0,0.91525404]
[1758870636952,0.017,109520.0,109510.0,0.99727152]
[1758870637348,0.017,109520.0,109510.0,1.07150679]
[1758870637746,0.03905,109520.0,109510.0,0.29201858]
[1758870637943,0.34086851,109520.0,109510.0,0.18720536]
[1758870638149,0.83210991,109520.0,109510.0,0.18720536]
[1758870638352,0.83210991,109520.0,109510.0,0.02143]
[1758870638552,0.03563,109510.0,109500.0,0.10344748]
[1758870638851,0.32386851,109510.0,109500.0,0.10344748]
[1758870639054,0.32386851,109510.0,109500.0,0.19470558]
[1758870639749,0.32586851,109510.0,109500.0,0.19470558]
[1758870640447,0.02405,109510.0,109500.0,0.1266581]
[1758870640847,0.02405,109510.0,109500.0,0.21797813]
[1758870641147,0.002,109510.0,109500.0,0.30895639]
[1758870641355,0.002,109510.0,109500.0,0.70895639]
[1758870641749,0.002,109510.0,109500.0,0.62693891]
[1758870641948,0.002,109510.0,109500.0,0.22693891]
[1758870642354,0.002,109510.0,109500.0,0.30869288]
[1758870642553,0.01358,109530.0,109500.0,0.30869288]
[1758870642756,0.02205,109520.0,109510.0,0.1266451]
[1758870642958,0.02205,109520.0,109510.0,0.20839907]
[1758870643261,0.03563,109520.0,109510.0,0.11715397]